Workbook

Sheet formular vyuctovanie 2017
A1: Vyúčtovanie finančných prostriedkov
A3: Finančné prostriedky poskytol : Slovenský tenisový zväz, Príkopova 6, 83103 Bratislava, IČO: 30811384
D4: 1
A5: Príjemca:
A6: =IF(D4<>3,"IČO :","Dátum narodenia :") -> IČO : | D6: Adresa : | G6: Číslo zmluvy:
A7: Samostatný bankový účet na príjem verejných prostriedkov (IBAN) :
A8: Typ a názov zmluvy : | C8: 1
A9: Ročná hodnota zmluvy: | D9: Kategória (iba v prípade podujatia) : | F9: Obdobie vyúčtovania od / do:
D10: 1
A11: poradové číslo dokladu vo vyúčto vaní | B11: Interné číslo účtovného dokladu | C11: Číslo externého (originálneho) účtovného dokladu | D11: Dátum skutočnej úhrady účtovného dokladu | E11: Popis úhrady | F11: Dodávateľ plnenia | G11: Skutočne uhradená suma (v eur) | H11: Vyplní STZ
A12: 1
A13: 2
A14: 3
A15: 4
A16: 5
A17: 6
A18: 7
A19: 8
A20: 9
A21: 10
A22: 11
A23: 12
A24: 13
A25: 14
A26: 15
A27: 16
A28: 17
A29: 18
A30: 19
A31: 20
E32: V prípade potreby vložte ďalšie riadky
A33: A | B33: Skutočne uhradená a vyúčtovaná suma za obdobie/podujatie spolu | G33: =SUM(G12:G32) -> 0
A34: B | B34: Prenos navyše vyúčtovanej sumy z predchádzajúceho obdobia v rovnakom kalendárnom roku
A35: C | B35: Nárok na finančný príspevok za uvedené obdobie od STZ
A36: D | B36: Nárok na neuhradený a nevyúčtovaný finančný príspevok za predchádzajúce obdobia od STZ
A37: E | B37: Uznaná suma príspevku : minimum ((A+B),(C+D)) | G37: =MIN((G33+G34),(G35+G36)) -> 0
A38: F | B38: Prenos navyše vyúčtovanej sumy do nasledujúceho obdobia v rovnakom kalendárnom roku (A+B-E) | G38: =+G33+G34-G37 -> 0
A39: G | B39: Prijaté zálohové platby
A40: H | B40: Suma k úhrade | G40: =+G37-G39 -> 0
B41: (Ružovo zvýraznené položky v hárku vyplní tenisový klub / RTZ / športovec).
A42: Prílohu vyúčtovania tvoria kópie* všetkých účtovných dokladov z evidencie prijímateľa, uvedených vo vyúčtovaní v poradí podľa tabuľky vyššie, t.j. napr.: a) faktúra, spolu s príslušnou objednávkou (alebo zmluvou) a dokladom potvrdzujúcim jej úhradu (pokladničný doklad, bankový výpis), b) výdavkový pokladničný doklad + doklad o úhrade z registračnej pokladne, c) dohoda o vykonaní práce, prac.zmluva resp. iná zmluva spolu s dokladom potvrdzujúcim úhradu odmeny netto (výdavkový pokl.doklad alebo bank.výpis) + doklad (bankový výpis) o úhrade dane zo záv.činnosti, resp. poistného na soc. a zdrav.poistenie (pokiaľ sú zahrnuté do vyúčtovania), d) ak je vo vyúčtovaní klubu uvedená suma za prenájom kurtov, ktoré sú vo vlastníctve/správe klubu, prílohu vyúčtovania tvorí faktúra klubu za prenájom kurtov, vystavená na STZ . *Pozn.: Ak vyúčtovanie zasiela športovec, prikladá originály dokladov.
A43: Podpísaný formulár spolu s prílohami zašlite po ukončení príslušného obdobia najneskôr do dátumu určeného v Zmluve poštou na adresu: Slovenský tenisový zväz, ekonomické oddelenie, Príkopova 6, 831 03 Bratislava.
A44: =+CONCATENATE("Formulár zašlite zároveň aj v elektronickej verzii (vo formáte .xlsm, .xls) na email: ",IF(C8=2,"vyuctovanie.hraci@stz.sk","vyuctovanie.kluby@stz.sk"),". (Bez príloh - dokladov z vyúčtovania).") -> Formulár zašlite zároveň aj v elektronickej verzii (vo formáte .xlsm, .xls) na email: vyuctovanie.kluby@stz.sk. (Bez príloh - dokladov z vyúčtovania).
A45: Do predmetu emailu uveďte číslo zmluvy: | E45: =IF(H6<>"",H6,"") -> 
A46: Čestne vyhlasujem, že všetky uvedené údaje sú pravdivé a dolu podpísaná osoba/osoby je oprávnená/sú oprávnené v súlade so stanovami, resp. zriaďovacou listinou na podpis vyúčtovania. Súhlasím so zhromažďovaním, spracovávaním a zverejňovaním poskytnutých údajov v zmysle Zákona o ochrane osobných údajov.
A47: Vypracoval:
A49: Telefón a email :
A51: Dňa:
F52: pečiatka a podpis štatutárneho zástupcu TK / RTZ / hráča
F56: za STZ schválil
E57: táto časť pod čiarou sa netlačí
E59: Zoznam typov zmlúv
D60: 1 | E60: Zmluva o finančnom príspevku na šport mládeže
D61: 2 | E61: Zmluva o finančnom príspevku pre športovca
D62: 3 | E62: Zmluva o vzájomnej spolupráci - MSR družstiev
D63: 4 | E63: Zmluva o vzájomnej spolupráci - MSR jednotlivcov
D64: 5 | E64: Zmluva o vzájomnej spolupráci - medzinárodné turnaje
D65: 6 | E65: Zmluva o vzájomnej spolupráci - regionálne MSR halové
D66: 7 | E66: Zmluva o vzájomnej spolupráci - regionálne MSR letné
D67: 8 | E67: Zmluva o vzájomnej spolupráci - príspevok na činnosť RTZ
D68: 9 | E68: Zmluva o vzájomnej spolupráci - detský DC a FC
D69: 10 | E69: Zmluva o vzájomnej spolupráci ...
E74: Zoznam kategórií
D75: 1
D76: 2 | E76: deti do 10rokov
D77: 3 | E77: mladší žiaci
D78: 4 | E78: mladšie žiačky
D79: 5 | E79: mladší žiaci a žiačky
D80: 6 | E80: starší žiaci
D81: 7 | E81: staršie žiačky
D82: 8 | E82: starší žiaci a žiačky
D83: 9 | E83: dorastenci
D84: 10 | E84: dorastenky
D85: 11 | E85: dorast
D86: 12 | E86: mladší dorastenci
D87: 13 | E87: mladšie dorastenky
D88: 14 | E88: mladší dorast
D89: 15 | E89: muži
D90: 16 | E90: ženy
D91: 17 | E91: dospelí
D92: 18 | E92: seniori 35+
D93: 19 | E93: seniori 45+
D94: 20 | E94: seniori 55+
D95: 21 | E95: seniori 65+
D96: 22 | E96: seniori 75+
D97: 23 | E97: seniori 85+
D98: 24 | E98: seniori 35+..85+
D99: 25 | E99: seniori iná kategória
D100: 26 | E100: športovec
D101: 27 | E101: turnaj ITF/TE
D102: 28 | E102: halové RMS
D103: 29 | E103: letné RMS
D104: 30
E108: Zoznam prijímateľov
D109: 1 | E109: Tenisový klub
D110: 2 | E110: Regionálny tenisový zväz
D111: 3 | E111: Športovec
D112: 4

Sheet VZOR športovec
A1: Vyúčtovanie finančných prostriedkov | H1: VZOR
A3: Finančné prostriedky poskytol : Slovenský tenisový zväz, Príkopova 6, 83103 Bratislava, IČO: 30811384
D4: 3
A5: Príjemca: | C5: Príjemca: | E5: Jana Malá
A6: =IF(D4<>3,"IČO :","Dátum narodenia :") -> Dátum narodenia : | C6: 15.12.1998 | D6: Adresa : | E6: Mesačná 23, 811 01 Bratislava | G6: Číslo zmluvy: | H6: 21792206
A7: Samostatný bankový účet na príjem verejných prostriedkov (IBAN) : | F7: SK7511000000002622625678
A8: Typ a názov zmluvy : | C8: 2
A9: Ročná hodnota zmluvy: | C9: 4000 | D9: Kategória (iba v prípade podujatia) : | F9: Obdobie vyúčtovania od / do: | G9: 2016-11-01 | H9: 2017-01-31
D10: 1
A11: poradové číslo dokladu vo vyúčto vaní | B11: Interné číslo účtovného dokladu | C11: Číslo externého (originálneho) účtovného dokladu | D11: Dátum skutočnej úhrady účtovného dokladu | E11: Popis úhrady | F11: Dodávateľ plnenia | G11: Skutočne uhradená suma (v eur) | H11: Vyplní STZ
A12: 1 | C12: 2016001287 | D12: 2017-01-05 | E12: tenisové lopty Dunlop Fort 72ks | F12: SEEKER, s.r.o. | G12: 108
A13: 2 | C13: 160011 | D13: 2017-01-07 | E13: odmena za služby trénera za 11/2016 | F13: Ján Pekný (SZČO) | G13: 350
A14: 3 | D14: 2017-01-15 | E14: vyúčtovanie cesty, turnaj Piešťany, 10.-11.1.2017, AUV, počet osôb:2 | F14: Jana Malá | G14: 78.34
A15: 4 | D15: 2017-01-05 | E15: iontové nápoje 15ks | F15: Fitness Relax, s.r.o. | G15: 18
A16: 5 | D16: 2017-01-10 | E16: vklady na turnaje | F16: TK Slovan Bratislava | G16: 30
A17: 6 | C17: 347801 | D17: 2017-01-15 | E17: ubytovanie na turnaji Jana Malá, 10.-12.1.2017,2noci | F17: Hotel Klub, s.r.o. | G17: 110
A18: 7 | C18: 2163457 | D18: 2017-01-10 | E18: nájom kurtov za 11,12/2016 | F18: TK ABC Bratislava | G18: 210.5
A19: 8 | C19: 20160378 | D19: 2017-01-15 | E19: masáže za 11,12/2016 | F19: Fitness Relax, s.r.o. | G19: 80
A20: 9 | C20: 16087412 | D20: 2017-01-20 | E20: tepláky 1ks + tenisky 2ks | F20: Adidas Slovensko, s.r.o. | G20: 178
A21: 10
A22: 11
A23: 12
A24: 13
A25: 14
A26: 15
A27: 16
A28: 17
A29: 18
A30: 19
A31: 20
E32: V prípade potreby vložte ďalšie riadky
A33: A | B33: Skutočne uhradená a vyúčtovaná suma za obdobie/podujatie spolu | G33: =SUM(G12:G32) -> 1162.84
A34: B | B34: Prenos navyše vyúčtovanej sumy z predchádzajúceho obdobia v rovnakom kalendárnom roku | G34: 0
A35: C | B35: Nárok na finančný príspevok za uvedené obdobie od STZ | G35: 1000
A36: D | B36: Nárok na neuhradený a nevyúčtovaný finančný príspevok za predchádzajúce obdobia od STZ | G36: 0
A37: E | B37: Uznaná suma príspevku : minimum ((A+B),(C+D)) | G37: =MIN((G33+G34),(G35+G36)) -> 1000
A38: F | B38: Prenos navyše vyúčtovanej sumy do nasledujúceho obdobia v rovnakom kalendárnom roku (A+B-E) | G38: =+G33+G34-G37 -> 162.84
A39: G | B39: Prijaté zálohové platby | G39: 0
A40: H | B40: Suma k úhrade | G40: =+G37-G39 -> 1000
B41: (Ružovo zvýraznené položky v hárku vyplní tenisový klub / RTZ / športovec).
A42: Prílohu vyúčtovania tvoria kópie* všetkých účtovných dokladov z evidencie prijímateľa, uvedených vo vyúčtovaní v poradí podľa tabuľky vyššie, t.j. napr.: a) faktúra, spolu s príslušnou objednávkou (alebo zmluvou) a dokladom potvrdzujúcim jej úhradu (pokladničný doklad, bankový výpis), b) výdavkový pokladničný doklad + doklad o úhrade z registračnej pokladne, c) dohoda o vykonaní práce, prac.zmluva resp. iná zmluva spolu s dokladom potvrdzujúcim úhradu odmeny netto (výdavkový pokl.doklad alebo bank.výpis) + doklad (bankový výpis) o úhrade dane zo záv.činnosti, resp. poistného na soc. a zdrav.poistenie (pokiaľ sú zahrnuté do vyúčtovania), d) ak je vo vyúčtovaní klubu uvedená suma za prenájom kurtov, ktoré sú vo vlastníctve/správe klubu, prílohu vyúčtovania tvorí faktúra klubu za prenájom kurtov, vystavená na STZ . *Pozn.: Ak vyúčtovanie zasiela športovec, prikladá originály dokladov.
A43: Podpísaný formulár spolu s prílohami zašlite po ukončení príslušného obdobia najneskôr do dátumu určeného v Zmluve poštou na adresu: Slovenský tenisový zväz, ekonomické oddelenie, Príkopova 6, 831 03 Bratislava.
A44: =+CONCATENATE("Formulár zašlite zároveň aj v elektronickej verzii (vo formáte .xlsm, .xls) na email: ",IF(C8=2,"vyuctovanie.hraci@stz.sk","vyuctovanie.kluby@stz.sk"),". (Bez príloh - dokladov z vyúčtovania).") -> Formulár zašlite zároveň aj v elektronickej verzii (vo formáte .xlsm, .xls) na email: vyuctovanie.hraci@stz.sk. (Bez príloh - dokladov z vyúčtovania).
A45: Do predmetu emailu uveďte číslo zmluvy: | E45: =IF(H6<>"",H6,"") -> 21792206
A46: Čestne vyhlasujem, že všetky uvedené údaje sú pravdivé a dolu podpísaná osoba/osoby je oprávnená/sú oprávnené v súlade so stanovami, resp. zriaďovacou listinou na podpis vyúčtovania. Súhlasím so zhromažďovaním, spracovávaním a zverejňovaním poskytnutých údajov v zmysle Zákona o ochrane osobných údajov.
A47: Vypracoval: | C47: Ing. Jozef Príklad
A49: Telefón a email : | C49: 0909/999 123, jozef1975@gmail.com
A51: Dňa: | C51: 2017-02-25
F52: pečiatka a podpis štatutárneho zástupcu TK / RTZ / hráča
F56: za STZ schválil
E57: táto časť pod čiarou sa netlačí
E59: Zoznam typov zmlúv
D60: 1 | E60: Zmluva o finančnom príspevku na šport mládeže
D61: 2 | E61: Zmluva o finančnom príspevku pre športovca
D62: 3 | E62: Zmluva o vzájomnej spolupráci - MSR družstiev
D63: 4 | E63: Zmluva o vzájomnej spolupráci - MSR jednotlivcov
D64: 5 | E64: Zmluva o vzájomnej spolupráci - medzinárodné turnaje
D65: 6 | E65: Zmluva o vzájomnej spolupráci - regionálne MSR halové
D66: 7 | E66: Zmluva o vzájomnej spolupráci - regionálne MSR letné
D67: 8 | E67: Zmluva o vzájomnej spolupráci - príspevok na činnosť RTZ
D68: 9 | E68: Zmluva o vzájomnej spolupráci - detský DC a FC
D69: 10 | E69: Zmluva o vzájomnej spolupráci ...
E74: Zoznam kategórií
D75: 1
D76: 2 | E76: deti do 10rokov
D77: 3 | E77: mladší žiaci
D78: 4 | E78: mladšie žiačky
D79: 5 | E79: mladší žiaci a žiačky
D80: 6 | E80: starší žiaci
D81: 7 | E81: staršie žiačky
D82: 8 | E82: starší žiaci a žiačky
D83: 9 | E83: dorastenci
D84: 10 | E84: dorastenky
D85: 11 | E85: dorast
D86: 12 | E86: mladší dorastenci
D87: 13 | E87: mladšie dorastenky
D88: 14 | E88: mladší dorast
D89: 15 | E89: muži
D90: 16 | E90: ženy
D91: 17 | E91: dospelí
D92: 18 | E92: seniori 35+
D93: 19 | E93: seniori 45+
D94: 20 | E94: seniori 55+
D95: 21 | E95: seniori 65+
D96: 22 | E96: seniori 75+
D97: 23 | E97: seniori 85+
D98: 24 | E98: seniori 35+..85+
D99: 25 | E99: seniori iná kategória
D100: 26 | E100: športovec
D101: 27 | E101: turnaj ITF/TE
D102: 28 | E102: halové RMS
D103: 29 | E103: letné RMS
D104: 30
E108: Zoznam prijímateľov
D109: 1 | E109: Tenisový klub
D110: 2 | E110: Regionálny tenisový zväz
D111: 3 | E111: Športovec
D112: 4

Sheet VZOR klub (športovec)
A1: Vyúčtovanie finančných prostriedkov | H1: VZOR
A3: Finančné prostriedky poskytol : Slovenský tenisový zväz, Príkopova 6, 83103 Bratislava, IČO: 30811384
D4: 1
A5: Príjemca: | C5: Príjemca: | E5: Tenisový klub ABC Bratislava
A6: =IF(D4<>3,"IČO :","Dátum narodenia :") -> IČO : | C6: 31234567 | D6: Adresa : | E6: Sputniková 36, 82101 Bratislava | G6: Číslo zmluvy: | H6: 21792206
A7: Samostatný bankový účet na príjem verejných prostriedkov (IBAN) : | F7: SK7511000000002622621234
A8: Typ a názov zmluvy : | C8: 2 | F8: Jana Malá, nar.15.12.1998
A9: Ročná hodnota zmluvy: | C9: 4000 | D9: Kategória (iba v prípade podujatia) : | F9: Obdobie vyúčtovania od / do: | G9: 2016-11-01 | H9: 2017-01-31
D10: 26
A11: poradové číslo dokladu vo vyúčto vaní | B11: Interné číslo účtovného dokladu | C11: Číslo externého (originálneho) účtovného dokladu | D11: Dátum skutočnej úhrady účtovného dokladu | E11: Popis úhrady | F11: Dodávateľ plnenia | G11: Skutočne uhradená suma (v eur) | H11: Vyplní STZ
A12: 1 | B12: FD 129/2016 | C12: 2016001287 | D12: 2017-01-05 | E12: tenisové lopty Dunlop Fort 72ks | F12: SEEKER, s.r.o. | G12: 108
A13: 2 | B13: FD 131/2016 | C13: 160011 | D13: 2017-01-07 | E13: odmena za služby trénera za 11/2016 | F13: Ján Pekný (SZČO) | G13: 350
A14: 3 | B14: V 013/2017 | D14: 2017-01-15 | E14: vyúčtovanie cesty, turnaj Piešťany, 10.-11.1.2017, AUV, počet osôb:2 | F14: Jana Malá | G14: 78.34
A15: 4 | B15: V 015/2017 | D15: 2017-01-05 | E15: iontové nápoje 15ks | F15: Fitness Relax, s.r.o. | G15: 18
A16: 5 | B16: V 021/2017 | D16: 2017-01-10 | E16: vklady na turnaje | F16: TK Slovan Bratislava | G16: 30
A17: 6 | B17: V 022/2017 | C17: 347801 | D17: 2017-01-15 | E17: ubytovanie na turnaji Jana Malá, 10.-12.1.2017,2noci | F17: Hotel Klub, s.r.o. | G17: 110
A18: 7 | B18: FV 375/2016 | D18: 2017-01-10 | E18: nájom kurtov za 11,12/2016 | F18: TK ABC Bratislava | G18: 210.5
A19: 8 | B19: V 025/2017 | C19: 20160378 | D19: 2017-01-15 | E19: masáže za 11,12/2016 | F19: Fitness Relax, s.r.o. | G19: 80
A20: 9 | B20: FD 021/2017 | C20: 16087412 | D20: 2017-01-20 | E20: tepláky 1ks + tenisky 2ks | F20: Adidas Slovensko, s.r.o. | G20: 178
A21: 10
A22: 11
A23: 12
A24: 13
A25: 14
A26: 15
A27: 16
A28: 17
A29: 18
A30: 19
A31: 20
E32: V prípade potreby vložte ďalšie riadky
A33: A | B33: Skutočne uhradená a vyúčtovaná suma za obdobie/podujatie spolu | G33: =SUM(G12:G32) -> 1162.84
A34: B | B34: Prenos navyše vyúčtovanej sumy z predchádzajúceho obdobia v rovnakom kalendárnom roku | G34: 0
A35: C | B35: Nárok na finančný príspevok za uvedené obdobie od STZ | G35: 1000
A36: D | B36: Nárok na neuhradený a nevyúčtovaný finančný príspevok za predchádzajúce obdobia od STZ | G36: 0
A37: E | B37: Uznaná suma príspevku : minimum ((A+B),(C+D)) | G37: =MIN((G33+G34),(G35+G36)) -> 1000
A38: F | B38: Prenos navyše vyúčtovanej sumy do nasledujúceho obdobia v rovnakom kalendárnom roku (A+B-E) | G38: =+G33+G34-G37 -> 162.84
A39: G | B39: Prijaté zálohové platby | G39: 0
A40: H | B40: Suma k úhrade | G40: =+G37-G39 -> 1000
B41: (Ružovo zvýraznené položky v hárku vyplní tenisový klub / RTZ / športovec).
A42: Prílohu vyúčtovania tvoria kópie* všetkých účtovných dokladov z evidencie prijímateľa, uvedených vo vyúčtovaní v poradí podľa tabuľky vyššie, t.j. napr.: a) faktúra, spolu s príslušnou objednávkou (alebo zmluvou) a dokladom potvrdzujúcim jej úhradu (pokladničný doklad, bankový výpis), b) výdavkový pokladničný doklad + doklad o úhrade z registračnej pokladne, c) dohoda o vykonaní práce, prac.zmluva resp. iná zmluva spolu s dokladom potvrdzujúcim úhradu odmeny netto (výdavkový pokl.doklad alebo bank.výpis) + doklad (bankový výpis) o úhrade dane zo záv.činnosti, resp. poistného na soc. a zdrav.poistenie (pokiaľ sú zahrnuté do vyúčtovania), d) ak je vo vyúčtovaní klubu uvedená suma za prenájom kurtov, ktoré sú vo vlastníctve/správe klubu, prílohu vyúčtovania tvorí faktúra klubu za prenájom kurtov, vystavená na STZ . *Pozn.: Ak vyúčtovanie zasiela športovec, prikladá originály dokladov.
A43: Podpísaný formulár spolu s prílohami zašlite po ukončení príslušného obdobia najneskôr do dátumu určeného v Zmluve poštou na adresu: Slovenský tenisový zväz, ekonomické oddelenie, Príkopova 6, 831 03 Bratislava.
A44: =+CONCATENATE("Formulár zašlite zároveň aj v elektronickej verzii (vo formáte .xlsm, .xls) na email: ",IF(C8=2,"vyuctovanie.hraci@stz.sk","vyuctovanie.kluby@stz.sk"),". (Bez príloh - dokladov z vyúčtovania).") -> Formulár zašlite zároveň aj v elektronickej verzii (vo formáte .xlsm, .xls) na email: vyuctovanie.hraci@stz.sk. (Bez príloh - dokladov z vyúčtovania).
A45: Do predmetu emailu uveďte číslo zmluvy: | E45: =IF(H6<>"",H6,"") -> 21792206
A46: Čestne vyhlasujem, že všetky uvedené údaje sú pravdivé a dolu podpísaná osoba/osoby je oprávnená/sú oprávnené v súlade so stanovami, resp. zriaďovacou listinou na podpis vyúčtovania. Súhlasím so zhromažďovaním, spracovávaním a zverejňovaním poskytnutých údajov v zmysle Zákona o ochrane osobných údajov.
A47: Vypracoval: | C47: Ing. Jozef Príklad
A49: Telefón a email : | C49: 0909/999 123, jozef1975@gmail.com
A51: Dňa: | C51: 2017-02-25
F52: pečiatka a podpis štatutárneho zástupcu TK / RTZ / hráča
F56: za STZ schválil
E57: táto časť pod čiarou sa netlačí
E59: Zoznam typov zmlúv
D60: 1 | E60: Zmluva o finančnom príspevku na šport mládeže
D61: 2 | E61: Zmluva o finančnom príspevku pre športovca
D62: 3 | E62: Zmluva o vzájomnej spolupráci - MSR družstiev
D63: 4 | E63: Zmluva o vzájomnej spolupráci - MSR jednotlivcov
D64: 5 | E64: Zmluva o vzájomnej spolupráci - medzinárodné turnaje
D65: 6 | E65: Zmluva o vzájomnej spolupráci - regionálne MSR halové
D66: 7 | E66: Zmluva o vzájomnej spolupráci - regionálne MSR letné
D67: 8 | E67: Zmluva o vzájomnej spolupráci - príspevok na činnosť RTZ
D68: 9 | E68: Zmluva o vzájomnej spolupráci - detský DC a FC
D69: 10 | E69: Zmluva o vzájomnej spolupráci ...
E74: Zoznam kategórií
D75: 1
D76: 2 | E76: deti do 10rokov
D77: 3 | E77: mladší žiaci
D78: 4 | E78: mladšie žiačky
D79: 5 | E79: mladší žiaci a žiačky
D80: 6 | E80: starší žiaci
D81: 7 | E81: staršie žiačky
D82: 8 | E82: starší žiaci a žiačky
D83: 9 | E83: dorastenci
D84: 10 | E84: dorastenky
D85: 11 | E85: dorast
D86: 12 | E86: mladší dorastenci
D87: 13 | E87: mladšie dorastenky
D88: 14 | E88: mladší dorast
D89: 15 | E89: muži
D90: 16 | E90: ženy
D91: 17 | E91: dospelí
D92: 18 | E92: seniori 35+
D93: 19 | E93: seniori 45+
D94: 20 | E94: seniori 55+
D95: 21 | E95: seniori 65+
D96: 22 | E96: seniori 75+
D97: 23 | E97: seniori 85+
D98: 24 | E98: seniori 35+..85+
D99: 25 | E99: seniori iná kategória
D100: 26 | E100: športovec
D101: 27 | E101: turnaj ITF/TE
D102: 28 | E102: halové RMS
D103: 29 | E103: letné RMS
D104: 30
E108: Zoznam prijímateľov
D109: 1 | E109: Tenisový klub
D110: 2 | E110: Regionálny tenisový zväz
D111: 3 | E111: Športovec
D112: 4

Sheet VZOR klub (mládež)
A1: Vyúčtovanie finančných prostriedkov | H1: VZOR
A3: Finančné prostriedky poskytol : Slovenský tenisový zväz, Príkopova 6, 83103 Bratislava, IČO: 30811384
D4: 1
A5: Príjemca: | C5: Príjemca: | E5: Tenisový klub ABC Bratislava
A6: =IF(D4<>3,"IČO :","Dátum narodenia :") -> IČO : | C6: 31234567 | D6: Adresa : | E6: Sputniková 36, 82101 Bratislava | G6: Číslo zmluvy: | H6: 21792021
A7: Samostatný bankový účet na príjem verejných prostriedkov (IBAN) : | F7: SK7511000000002622621234
A8: Typ a názov zmluvy : | C8: 1
A9: Ročná hodnota zmluvy: | C9: 21000 | D9: Kategória (iba v prípade podujatia) : | F9: Obdobie vyúčtovania od / do: | G9: 2016-11-01 | H9: 2016-12-31
D10: 1
A11: poradové číslo dokladu vo vyúčto vaní | B11: Interné číslo účtovného dokladu | C11: Číslo externého (originálneho) účtovného dokladu | D11: Dátum skutočnej úhrady účtovného dokladu | E11: Popis úhrady | F11: Dodávateľ plnenia | G11: Skutočne uhradená suma (v eur) | H11: Vyplní STZ
A12: 1 | B12: FD 103/2016 | C12: 160011 | D12: 2016-12-15 | E12: odmena za služby trénera za 11/2016 | F12: Ján Pekný (SZČO) | G12: 1600
A13: 2 | B13: FD104/2016 | C13: 16005789 | D13: 2016-12-15 | E13: svietidlá 12ks v ten.hale - výmena | F13: Elektroshop, s.r.o. | G13: 208.08
A14: 3 | B14: FD 094/2016 | C14: 2016001287 | D14: 2016-11-28 | E14: tenisové lopty Dunlop Fort 72ks | F14: SEEKER, s.r.o. | G14: 108
A15: 4 | B15: V 217/2016 | D15: 2016-12-15 | E15: vyúčtovanie cesty, turnaj Piešťany, 10.-11.12.2016, AUV, počet osôb:2 | F15: Ján Pekný | G15: 78.34
A16: 5 | B16: FD 099/2016 | C16: 2163457 | D16: 2016-12-31 | E16: nájom telocvične za 11,12/2016 | F16: Základná škola Družstevná, Bratislava | G16: 210.5
A17: 6 | B17: V 218/2016 | D17: 2016-12-15 | E17: svietidlá 12ks v ten.hale - výmena žiariviek | F17: Elektroshop, s.r.o. | G17: 208.08
A18: 7 | B18: FD 108/2016 | C18: 16087412 | D18: 2016-12-14 | E18: tepláky pre družstvo mužov - 6ks | F18: Adidas Slovensko, s.r.o. | G18: 474
A19: 8 | B19: V 220/2016 | D19: 2016-12-16 | E19: regenerácia pre hráča Jana Malá, 11/2016 | F19: Fitness Relax, s.r.o. | G19: 85
A20: 9 | B20: V 221/2016 | D20: 2016-12-16 | E20: iontové nápoje 150ks | F20: Fitness Relax, s.r.o. | G20: 180
A21: 10 | B21: FD 110/2016 | C21: 201601287 | D21: 2016-12-17 | E21: antuka (2tony) | F21: Tehelňa XY, s.r.o. | G21: 285
A22: 11 | B22: V 226/2016 | D22: 2016-12-18 | E22: vklady na turnaje pre hráčov Jana Malá, Anna Pekná | F22: TK Slovan Bratislava | G22: 30
A23: 12 | B23: FD 112/2016 | C23: 347801 | D23: 2016-12-20 | E23: ubytovanie na turnaji Jana Malá, Anna Pekná, 10.-12.12.2016,2noci | F23: Hotel Klub, s.r.o. | G23: 110
A24: 13
A25: 14
A26: 15
A27: 16
A28: 17
A29: 18
A30: 19
A31: 20
E32: V prípade potreby vložte ďalšie riadky
A33: A | B33: Skutočne uhradená a vyúčtovaná suma za obdobie/podujatie spolu | G33: =SUM(G12:G32) -> 3577
A34: B | B34: Prenos navyše vyúčtovanej sumy z predchádzajúceho obdobia v rovnakom kalendárnom roku | G34: 0
A35: C | B35: Nárok na finančný príspevok za uvedené obdobie od STZ | G35: 3500
A36: D | B36: Nárok na neuhradený a nevyúčtovaný finančný príspevok za predchádzajúce obdobia od STZ | G36: 0
A37: E | B37: Uznaná suma príspevku : minimum ((A+B),(C+D)) | G37: =MIN((G33+G34),(G35+G36)) -> 3500
A38: F | B38: Prenos navyše vyúčtovanej sumy do nasledujúceho obdobia v rovnakom kalendárnom roku (A+B-E) | G38: =+G33+G34-G37 -> 77
A39: G | B39: Prijaté zálohové platby | G39: 3500
A40: H | B40: Suma k úhrade | G40: =+G37-G39 -> 0
B41: (Ružovo zvýraznené položky v hárku vyplní tenisový klub / RTZ / športovec).
A42: Prílohu vyúčtovania tvoria kópie* všetkých účtovných dokladov z evidencie prijímateľa, uvedených vo vyúčtovaní v poradí podľa tabuľky vyššie, t.j. napr.: a) faktúra, spolu s príslušnou objednávkou (alebo zmluvou) a dokladom potvrdzujúcim jej úhradu (pokladničný doklad, bankový výpis), b) výdavkový pokladničný doklad + doklad o úhrade z registračnej pokladne, c) dohoda o vykonaní práce, prac.zmluva resp. iná zmluva spolu s dokladom potvrdzujúcim úhradu odmeny netto (výdavkový pokl.doklad alebo bank.výpis) + doklad (bankový výpis) o úhrade dane zo záv.činnosti, resp. poistného na soc. a zdrav.poistenie (pokiaľ sú zahrnuté do vyúčtovania), d) ak je vo vyúčtovaní klubu uvedená suma za prenájom kurtov, ktoré sú vo vlastníctve/správe klubu, prílohu vyúčtovania tvorí faktúra klubu za prenájom kurtov, vystavená na STZ . *Pozn.: Ak vyúčtovanie zasiela športovec, prikladá originály dokladov.
A43: Podpísaný formulár spolu s prílohami zašlite po ukončení príslušného obdobia najneskôr do dátumu určeného v Zmluve poštou na adresu: Slovenský tenisový zväz, ekonomické oddelenie, Príkopova 6, 831 03 Bratislava.
A44: =+CONCATENATE("Formulár zašlite zároveň aj v elektronickej verzii (vo formáte .xlsm, .xls) na email: ",IF(C8=2,"vyuctovanie.hraci@stz.sk","vyuctovanie.kluby@stz.sk"),". (Bez príloh - dokladov z vyúčtovania).") -> Formulár zašlite zároveň aj v elektronickej verzii (vo formáte .xlsm, .xls) na email: vyuctovanie.kluby@stz.sk. (Bez príloh - dokladov z vyúčtovania).
A45: Do predmetu emailu uveďte číslo zmluvy: | E45: =IF(H6<>"",H6,"") -> 21792021
A46: Čestne vyhlasujem, že všetky uvedené údaje sú pravdivé a dolu podpísaná osoba/osoby je oprávnená/sú oprávnené v súlade so stanovami, resp. zriaďovacou listinou na podpis vyúčtovania. Súhlasím so zhromažďovaním, spracovávaním a zverejňovaním poskytnutých údajov v zmysle Zákona o ochrane osobných údajov.
A47: Vypracoval: | C47: Ing. Jozef Príklad
A49: Telefón a email : | C49: 0909/999 123, jozef1975@gmail.com
A51: Dňa: | C51: 2017-01-20
F52: pečiatka a podpis štatutárneho zástupcu TK / RTZ / hráča
F56: za STZ schválil
E57: táto časť pod čiarou sa netlačí
E59: Zoznam typov zmlúv
D60: 1 | E60: Zmluva o finančnom príspevku na šport mládeže
D61: 2 | E61: Zmluva o finančnom príspevku pre športovca
D62: 3 | E62: Zmluva o vzájomnej spolupráci - MSR družstiev
D63: 4 | E63: Zmluva o vzájomnej spolupráci - MSR jednotlivcov
D64: 5 | E64: Zmluva o vzájomnej spolupráci - medzinárodné turnaje
D65: 6 | E65: Zmluva o vzájomnej spolupráci - regionálne MSR halové
D66: 7 | E66: Zmluva o vzájomnej spolupráci - regionálne MSR letné
D67: 8 | E67: Zmluva o vzájomnej spolupráci - príspevok na činnosť RTZ
D68: 9 | E68: Zmluva o vzájomnej spolupráci - detský DC a FC
D69: 10 | E69: Zmluva o vzájomnej spolupráci ...
E74: Zoznam kategórií
D75: 1
D76: 2 | E76: deti do 10rokov
D77: 3 | E77: mladší žiaci
D78: 4 | E78: mladšie žiačky
D79: 5 | E79: mladší žiaci a žiačky
D80: 6 | E80: starší žiaci
D81: 7 | E81: staršie žiačky
D82: 8 | E82: starší žiaci a žiačky
D83: 9 | E83: dorastenci
D84: 10 | E84: dorastenky
D85: 11 | E85: dorast
D86: 12 | E86: mladší dorastenci
D87: 13 | E87: mladšie dorastenky
D88: 14 | E88: mladší dorast
D89: 15 | E89: muži
D90: 16 | E90: ženy
D91: 17 | E91: dospelí
D92: 18 | E92: seniori 35+
D93: 19 | E93: seniori 45+
D94: 20 | E94: seniori 55+
D95: 21 | E95: seniori 65+
D96: 22 | E96: seniori 75+
D97: 23 | E97: seniori 85+
D98: 24 | E98: seniori 35+..85+
D99: 25 | E99: seniori iná kategória
D100: 26 | E100: športovec
D101: 27 | E101: turnaj ITF/TE
D102: 28 | E102: halové RMS
D103: 29 | E103: letné RMS
D104: 30
E108: Zoznam prijímateľov
D109: 1 | E109: Tenisový klub
D110: 2 | E110: Regionálny tenisový zväz
D111: 3 | E111: Športovec
D112: 4

Sheet VZOR klub (MSR)
A1: Vyúčtovanie finančných prostriedkov | H1: VZOR
A3: Finančné prostriedky poskytol : Slovenský tenisový zväz, Príkopova 6, 83103 Bratislava, IČO: 30811384
D4: 1
A5: Príjemca: | C5: Príjemca: | E5: Tenisový klub ABC Bratislava
A6: =IF(D4<>3,"IČO :","Dátum narodenia :") -> IČO : | C6: 31234567 | D6: Adresa : | E6: Sputniková 36, 82101 Bratislava | G6: Číslo zmluvy: | H6: 21792408
A7: Samostatný bankový účet na príjem verejných prostriedkov (IBAN) : | F7: SK7511000000002622621234
A8: Typ a názov zmluvy : | C8: 4 | F8: letné MSR dorast
A9: Ročná hodnota zmluvy: | C9: 1400 | D9: Kategória (iba v prípade podujatia) : | F9: Obdobie vyúčtovania od / do: | G9: 2017-05-23 | H9: 2017-05-27
D10: 11
A11: poradové číslo dokladu vo vyúčto vaní | B11: Interné číslo účtovného dokladu | C11: Číslo externého (originálneho) účtovného dokladu | D11: Dátum skutočnej úhrady účtovného dokladu | E11: Popis úhrady | F11: Dodávateľ plnenia | G11: Skutočne uhradená suma (v eur) | H11: Vyplní STZ
A12: 1 | B12: FD 121/2017 | C12: 170318 | D12: 2017-05-29 | E12: zabezpečenie stravy - 18 osôb, 2dni | F12: SlovRest s.r.o. | G12: =18*2*3.5 -> 126
A13: 2 | B13: FD123/2017 | C13: 2017021 | D13: 2017-05-30 | E13: rozhodca - MSR, 4dni | F13: Ján Rozhodca (szčo) | G13: 180
A14: 3 | B14: ID 501 | D14: 2017-06-10 | E14: mzdy DoVP netto (3 osoby) | F14: organizátori podujatia | G14: =72.09*3 -> 216.27
A15: 4 | B15: ID 501 | D15: 2017-06-10 | E15: daň z miezd (3 osoby) | F15: Daňový úrad XY | G15: =16.91*3 -> 50.73
A16: 5 | B16: ID 501 | D16: 2017-06-10 | E16: zdravotné poistenie | F16: Všeobecná zdrav.poisťovňa | G16: =14*3 -> 42
A17: 6 | B17: ID 501 | D17: 2017-06-10 | E17: sociálne poistenie | F17: Sociálna poisťovňa | G17: =29.8*3 -> 89.4
A18: 7 | B18: V 186/2017 | D18: 2017-05-25 | E18: vecné ceny - 4 osoby | F18: GiftShop, s.r.o. | G18: =14.5*4 -> 58
A19: 8 | B19: FD124/2017 | C19: 0212017 | D19: 2017-05-30 | E19: zdrav.služba 4dni | F19: Záchranka, s.r.o. | G19: 160
A20: 9 | B20: FV 216/2017 | D20: 2017-05-30 | E20: prenájom kurtov (Pozn.: dopočet do výšky zmluvy, doložiť faktúrou vystavenou z klubu na STZ) | F20: Tenisový klub ABC Bratislava | G20: 480
A21: 10
A22: 11
A23: 12
A24: 13
A25: 14
A26: 15
A27: 16
A28: 17
A29: 18
A30: 19
A31: 20
E32: V prípade potreby vložte ďalšie riadky
A33: A | B33: Skutočne uhradená a vyúčtovaná suma za obdobie/podujatie spolu | G33: =SUM(G12:G32) -> 1402.4
A34: B | B34: Prenos navyše vyúčtovanej sumy z predchádzajúceho obdobia v rovnakom kalendárnom roku | G34: 0
A35: C | B35: Nárok na finančný príspevok za uvedené obdobie od STZ | G35: 1400
A36: D | B36: Nárok na neuhradený a nevyúčtovaný finančný príspevok za predchádzajúce obdobia od STZ | G36: 0
A37: E | B37: Uznaná suma príspevku : minimum ((A+B),(C+D)) | G37: =MIN((G33+G34),(G35+G36)) -> 1400
A38: F | B38: Prenos navyše vyúčtovanej sumy do nasledujúceho obdobia v rovnakom kalendárnom roku (A+B-E) | G38: =+G33+G34-G37 -> 2.4
A39: G | B39: Prijaté zálohové platby | G39: 1000
A40: H | B40: Suma k úhrade | G40: =+G37-G39 -> 400
B41: (Ružovo zvýraznené položky v hárku vyplní tenisový klub / RTZ / športovec).
A42: Prílohu vyúčtovania tvoria kópie* všetkých účtovných dokladov z evidencie prijímateľa, uvedených vo vyúčtovaní v poradí podľa tabuľky vyššie, t.j. napr.: a) faktúra, spolu s príslušnou objednávkou (alebo zmluvou) a dokladom potvrdzujúcim jej úhradu (pokladničný doklad, bankový výpis), b) výdavkový pokladničný doklad + doklad o úhrade z registračnej pokladne, c) dohoda o vykonaní práce, prac.zmluva resp. iná zmluva spolu s dokladom potvrdzujúcim úhradu odmeny netto (výdavkový pokl.doklad alebo bank.výpis) + doklad (bankový výpis) o úhrade dane zo záv.činnosti, resp. poistného na soc. a zdrav.poistenie (pokiaľ sú zahrnuté do vyúčtovania), d) ak je vo vyúčtovaní klubu uvedená suma za prenájom kurtov, ktoré sú vo vlastníctve/správe klubu, prílohu vyúčtovania tvorí faktúra klubu za prenájom kurtov, vystavená na STZ . *Pozn.: Ak vyúčtovanie zasiela športovec, prikladá originály dokladov.
A43: Podpísaný formulár spolu s prílohami zašlite po ukončení príslušného obdobia najneskôr do dátumu určeného v Zmluve poštou na adresu: Slovenský tenisový zväz, ekonomické oddelenie, Príkopova 6, 831 03 Bratislava.
A44: =+CONCATENATE("Formulár zašlite zároveň aj v elektronickej verzii (vo formáte .xlsm, .xls) na email: ",IF(C8=2,"vyuctovanie.hraci@stz.sk","vyuctovanie.kluby@stz.sk"),". (Bez príloh - dokladov z vyúčtovania).") -> Formulár zašlite zároveň aj v elektronickej verzii (vo formáte .xlsm, .xls) na email: vyuctovanie.kluby@stz.sk. (Bez príloh - dokladov z vyúčtovania).
A45: Do predmetu emailu uveďte číslo zmluvy: | E45: =IF(H6<>"",H6,"") -> 21792408
A46: Čestne vyhlasujem, že všetky uvedené údaje sú pravdivé a dolu podpísaná osoba/osoby je oprávnená/sú oprávnené v súlade so stanovami, resp. zriaďovacou listinou na podpis vyúčtovania. Súhlasím so zhromažďovaním, spracovávaním a zverejňovaním poskytnutých údajov v zmysle Zákona o ochrane osobných údajov.
A47: Vypracoval: | C47: Ing. Jozef Príklad
A49: Telefón a email : | C49: 0909/999 123, jozef1975@gmail.com
A51: Dňa: | C51: 2017-06-15
F52: pečiatka a podpis štatutárneho zástupcu TK / RTZ / hráča
F56: za STZ schválil
E57: táto časť pod čiarou sa netlačí
E59: Zoznam typov zmlúv
D60: 1 | E60: Zmluva o finančnom príspevku na šport mládeže
D61: 2 | E61: Zmluva o finančnom príspevku pre športovca
D62: 3 | E62: Zmluva o vzájomnej spolupráci - MSR družstiev
D63: 4 | E63: Zmluva o vzájomnej spolupráci - MSR jednotlivcov
D64: 5 | E64: Zmluva o vzájomnej spolupráci - medzinárodné turnaje
D65: 6 | E65: Zmluva o vzájomnej spolupráci - regionálne MSR halové
D66: 7 | E66: Zmluva o vzájomnej spolupráci - regionálne MSR letné
D67: 8 | E67: Zmluva o vzájomnej spolupráci - príspevok na činnosť RTZ
D68: 9 | E68: Zmluva o vzájomnej spolupráci - detský DC a FC
D69: 10 | E69: Zmluva o vzájomnej spolupráci ...
E74: Zoznam kategórií
D75: 1
D76: 2 | E76: deti do 10rokov
D77: 3 | E77: mladší žiaci
D78: 4 | E78: mladšie žiačky
D79: 5 | E79: mladší žiaci a žiačky
D80: 6 | E80: starší žiaci
D81: 7 | E81: staršie žiačky
D82: 8 | E82: starší žiaci a žiačky
D83: 9 | E83: dorastenci
D84: 10 | E84: dorastenky
D85: 11 | E85: dorast
D86: 12 | E86: mladší dorastenci
D87: 13 | E87: mladšie dorastenky
D88: 14 | E88: mladší dorast
D89: 15 | E89: muži
D90: 16 | E90: ženy
D91: 17 | E91: dospelí
D92: 18 | E92: seniori 35+
D93: 19 | E93: seniori 45+
D94: 20 | E94: seniori 55+
D95: 21 | E95: seniori 65+
D96: 22 | E96: seniori 75+
D97: 23 | E97: seniori 85+
D98: 24 | E98: seniori 35+..85+
D99: 25 | E99: seniori iná kategória
D100: 26 | E100: športovec
D101: 27 | E101: turnaj ITF/TE
D102: 28 | E102: halové RMS
D103: 29 | E103: letné RMS
D104: 30
E108: Zoznam prijímateľov
D109: 1 | E109: Tenisový klub
D110: 2 | E110: Regionálny tenisový zväz
D111: 3 | E111: Športovec
D112: 4

Sheet VZOR klub (medz.turnaj)
A1: Vyúčtovanie finančných prostriedkov | H1: VZOR
A3: Finančné prostriedky poskytol : Slovenský tenisový zväz, Príkopova 6, 83103 Bratislava, IČO: 30811384
D4: 1
A5: Príjemca: | C5: Príjemca: | E5: Tenisový klub ABC Bratislava
A6: =IF(D4<>3,"IČO :","Dátum narodenia :") -> IČO : | C6: 31234567 | D6: Adresa : | E6: Sputniková 36, 82101 Bratislava | G6: Číslo zmluvy: | H6: 21792437
A7: Samostatný bankový účet na príjem verejných prostriedkov (IBAN) : | F7: SK7511000000002622621234
A8: Typ a názov zmluvy : | C8: 10 | F8: Slovakia Cup 2017, turnaj ITF2
A9: Ročná hodnota zmluvy: | C9: 5000 | D9: Kategória (iba v prípade podujatia) : | F9: Obdobie vyúčtovania od / do: | G9: 2017-05-20 | H9: 2017-05-27
D10: 11
A11: poradové číslo dokladu vo vyúčto vaní | B11: Interné číslo účtovného dokladu | C11: Číslo externého (originálneho) účtovného dokladu | D11: Dátum skutočnej úhrady účtovného dokladu | E11: Popis úhrady | F11: Dodávateľ plnenia | G11: Skutočne uhradená suma (v eur) | H11: Vyplní STZ
A12: 1 | B12: FD 121/2017 | C12: 170318 | D12: 2017-05-29 | E12: zabezpečenie stravy - 10 osôb, 7dni | F12: SlovRest s.r.o. | G12: =10*7*3.5 -> 245
A13: 2 | B13: FD123/2017 | C13: 2017021 | D13: 2017-05-30 | E13: rozhodca 7dni | F13: Ján Rozhodca (szčo) | G13: =45*7 -> 315
A14: 3 | B14: ID 501 | D14: 2017-06-10 | E14: mzdy DoVP netto (3 osoby) | F14: organizátori podujatia | G14: =72.09*3*2 -> 432.54
A15: 4 | B15: ID 501 | D15: 2017-06-10 | E15: daň z miezd (3 osoby) | F15: Daňový úrad XY | G15: =16.91*3*2 -> 101.46
A16: 5 | B16: ID 501 | D16: 2017-06-10 | E16: zdravotné poistenie | F16: Všeobecná zdrav.poisťovňa | G16: =14*3*2 -> 84
A17: 6 | B17: ID 501 | D17: 2017-06-10 | E17: sociálne poistenie | F17: Sociálna poisťovňa | G17: =29.8*3*2 -> 178.8
A18: 7 | B18: V 186/2017 | D18: 2017-05-25 | E18: vecné ceny - 6 osôb | F18: GiftShop, s.r.o. | G18: =14.5*6 -> 87
A19: 8 | B19: FD124/2017 | C19: 0212017 | D19: 2017-05-30 | E19: zdrav.služba 7dni | F19: Záchranka, s.r.o. | G19: =40*7 -> 280
A20: 9 | B20: FD 125/2017 | C20: 20170561 | D20: 2017-05-30 | E20: ubytovanie hráčov, 56 osôb, 7dní | F20: Študentský domov, s.r.o. | G20: 2792
A21: 10 | B21: V 190/2017 | D21: 2017-05-19 | E21: nápoje pre hráčov 336ks | F21: Tesco Stores, a.s. | G21: =56*0.4*6 -> 134.4
A22: 11 | B22: FV 216/2017 | D22: 2017-05-30 | E22: prenájom kurtov (Pozn.: dopočet do výšky zmluvy, doložiť faktúrou vystavenou z klubu na STZ) | F22: Tenisový klub ABC Bratislava | G22: 350
A23: 12
A24: 13
A25: 14
A26: 15
A27: 16
A28: 17
A29: 18
A30: 19
A31: 20
E32: V prípade potreby vložte ďalšie riadky
A33: A | B33: Skutočne uhradená a vyúčtovaná suma za obdobie/podujatie spolu | G33: =SUM(G12:G32) -> 5000.2
A34: B | B34: Prenos navyše vyúčtovanej sumy z predchádzajúceho obdobia v rovnakom kalendárnom roku | G34: 0
A35: C | B35: Nárok na finančný príspevok za uvedené obdobie od STZ | G35: 5000
A36: D | B36: Nárok na neuhradený a nevyúčtovaný finančný príspevok za predchádzajúce obdobia od STZ | G36: 0
A37: E | B37: Uznaná suma príspevku : minimum ((A+B),(C+D)) | G37: =MIN((G33+G34),(G35+G36)) -> 5000
A38: F | B38: Prenos navyše vyúčtovanej sumy do nasledujúceho obdobia v rovnakom kalendárnom roku (A+B-E) | G38: =+G33+G34-G37 -> 0.2
A39: G | B39: Prijaté zálohové platby | G39: 3000
A40: H | B40: Suma k úhrade | G40: =+G37-G39 -> 2000
B41: (Ružovo zvýraznené položky v hárku vyplní tenisový klub / RTZ / športovec).
A42: Prílohu vyúčtovania tvoria kópie* všetkých účtovných dokladov z evidencie prijímateľa, uvedených vo vyúčtovaní v poradí podľa tabuľky vyššie, t.j. napr.: a) faktúra, spolu s príslušnou objednávkou (alebo zmluvou) a dokladom potvrdzujúcim jej úhradu (pokladničný doklad, bankový výpis), b) výdavkový pokladničný doklad + doklad o úhrade z registračnej pokladne, c) dohoda o vykonaní práce, prac.zmluva resp. iná zmluva spolu s dokladom potvrdzujúcim úhradu odmeny netto (výdavkový pokl.doklad alebo bank.výpis) + doklad (bankový výpis) o úhrade dane zo záv.činnosti, resp. poistného na soc. a zdrav.poistenie (pokiaľ sú zahrnuté do vyúčtovania), d) ak je vo vyúčtovaní klubu uvedená suma za prenájom kurtov, ktoré sú vo vlastníctve/správe klubu, prílohu vyúčtovania tvorí faktúra klubu za prenájom kurtov, vystavená na STZ . *Pozn.: Ak vyúčtovanie zasiela športovec, prikladá originály dokladov.
A43: Podpísaný formulár spolu s prílohami zašlite po ukončení príslušného obdobia najneskôr do dátumu určeného v Zmluve poštou na adresu: Slovenský tenisový zväz, ekonomické oddelenie, Príkopova 6, 831 03 Bratislava.
A44: =+CONCATENATE("Formulár zašlite zároveň aj v elektronickej verzii (vo formáte .xlsm, .xls) na email: ",IF(C8=2,"vyuctovanie.hraci@stz.sk","vyuctovanie.kluby@stz.sk"),". (Bez príloh - dokladov z vyúčtovania).") -> Formulár zašlite zároveň aj v elektronickej verzii (vo formáte .xlsm, .xls) na email: vyuctovanie.kluby@stz.sk. (Bez príloh - dokladov z vyúčtovania).
A45: Do predmetu emailu uveďte číslo zmluvy: | E45: =IF(H6<>"",H6,"") -> 21792437
A46: Čestne vyhlasujem, že všetky uvedené údaje sú pravdivé a dolu podpísaná osoba/osoby je oprávnená/sú oprávnené v súlade so stanovami, resp. zriaďovacou listinou na podpis vyúčtovania. Súhlasím so zhromažďovaním, spracovávaním a zverejňovaním poskytnutých údajov v zmysle Zákona o ochrane osobných údajov.
A47: Vypracoval: | C47: Ing. Jozef Príklad
A49: Telefón a email : | C49: 0909/999 123, jozef1975@gmail.com
A51: Dňa: | C51: 2017-06-15
F52: pečiatka a podpis štatutárneho zástupcu TK / RTZ / hráča
F56: za STZ schválil
E57: táto časť pod čiarou sa netlačí
E59: Zoznam typov zmlúv
D60: 1 | E60: Zmluva o finančnom príspevku na šport mládeže
D61: 2 | E61: Zmluva o finančnom príspevku pre športovca
D62: 3 | E62: Zmluva o vzájomnej spolupráci - MSR družstiev
D63: 4 | E63: Zmluva o vzájomnej spolupráci - MSR jednotlivcov
D64: 5 | E64: Zmluva o vzájomnej spolupráci - medzinárodné turnaje
D65: 6 | E65: Zmluva o vzájomnej spolupráci - regionálne MSR halové
D66: 7 | E66: Zmluva o vzájomnej spolupráci - regionálne MSR letné
D67: 8 | E67: Zmluva o vzájomnej spolupráci - príspevok na činnosť RTZ
D68: 9 | E68: Zmluva o vzájomnej spolupráci - detský DC a FC
D69: 10 | E69: Zmluva o vzájomnej spolupráci ...
E74: Zoznam kategórií
D75: 1
D76: 2 | E76: deti do 10rokov
D77: 3 | E77: mladší žiaci
D78: 4 | E78: mladšie žiačky
D79: 5 | E79: mladší žiaci a žiačky
D80: 6 | E80: starší žiaci
D81: 7 | E81: staršie žiačky
D82: 8 | E82: starší žiaci a žiačky
D83: 9 | E83: dorastenci
D84: 10 | E84: dorastenky
D85: 11 | E85: dorast
D86: 12 | E86: mladší dorastenci
D87: 13 | E87: mladšie dorastenky
D88: 14 | E88: mladší dorast
D89: 15 | E89: muži
D90: 16 | E90: ženy
D91: 17 | E91: dospelí
D92: 18 | E92: seniori 35+
D93: 19 | E93: seniori 45+
D94: 20 | E94: seniori 55+
D95: 21 | E95: seniori 65+
D96: 22 | E96: seniori 75+
D97: 23 | E97: seniori 85+
D98: 24 | E98: seniori 35+..85+
D99: 25 | E99: seniori iná kategória
D100: 26 | E100: športovec
D101: 27 | E101: turnaj ITF/TE
D102: 28 | E102: halové RMS
D103: 29 | E103: letné RMS
D104: 30
E108: Zoznam prijímateľov
D109: 1 | E109: Tenisový klub
D110: 2 | E110: Regionálny tenisový zväz
D111: 3 | E111: Športovec
D112: 4
